lending/lending_fUSD_20240507
["ID","MTS","AMOUNT","RATE_DAILY","PERIOD"]
[326596958,1715123438358,-1000.0,0.00019352,2]
[326596959,1715123438368,-100000.0,0.00019352,2]
[326596960,1715123438378,-10000.0,0.00019352,2]
[326596961,1715123438390,-245000.0,0.00019352,2]
[326596962,1715123438400,-2059.46703241,0.0001945,2]
[326596963,1715123438410,-231.40163202,0.0001945,2]
[326596964,1715123438421,-155.0,0.0001945,2]
[326596965,1715123438431,-336.71253338,0.0001945,2]
[326596966,1715123438441,-161.45756491,0.00019451,2]
[326596967,1715123438451,-223.17165275,0.00019451,2]
[326596968,1715123438462,-500.0,0.00019452,2]
[326596969,1715123438472,-181.20489547,0.00019452,2]
[326596970,1715123438482,-200.7,0.00019452,2]
[326596971,1715123438492,-500.0,0.00019525,2]
[326596972,1715123438505,-500.0,0.00019525,2]
[326596973,1715123438515,-500.0,0.00019525,2]
[326596974,1715123438525,-500.0,0.00019525,2]
[326596975,1715123438535,-500.0,0.00019525,2]
[326596976,1715123438545,-1107.85,0.00019525,2]
[326596977,1715123438556,-500.0,0.00019525,2]
[326596978,1715123438566,-500.0,0.00019625,2]
[326596979,1715123438576,-500.0,0.00019625,2]
[326596980,1715123438586,-500.0,0.00019625,2]
[326596981,1715123438596,-500.0,0.00019625,2]
[326596982,1715123438606,-498.79572579,0.00019625,2]
[326596983,1715123438617,-646.21,0.00019625,2]
[326596984,1715123438627,-597.83,0.00019625,2]
[326596985,1715123438638,-500.0,0.00019625,2]
[326596986,1715123438648,-500.0,0.00019625,2]
[326596987,1715123438658,-500.0,0.00019625,2]
[326596988,1715123438669,-500.0,0.00019625,2]
[326596989,1715123438679,-500.0,0.00019625,2]
[326596990,1715123438690,-500.0,0.00019625,2]
[326596991,1715123438701,-742.01,0.00019625,2]
[326596992,1715123438712,-533.49,0.00019625,2]
[326596993,1715123438723,-500.0,0.00019625,2]
[326596994,1715123438733,-500.0,0.00019625,2]
[326596995,1715123438743,-862.44,0.00019625,2]
[326596996,1715123438758,-500.0,0.00019625,2]
[326596997,1715123438768,-500.0,0.00019625,2]
[326596998,1715123438779,-500.0,0.00019625,2]
[326596999,1715123438789,-477.58490665,0.00019625,2]
[326597000,1715123438799,-500.0,0.00019625,2]
[326597001,1715123438810,-519.2,0.00019625,2]
[326597002,1715123438820,-500.0,0.00019625,2]
[326597003,1715123438830,-500.0,0.00019625,2]
[326597004,1715123438840,-500.0,0.00019625,2]
[326597005,1715123438850,-500.0,0.00019625,2]
[326597006,1715123438860,-1443.74,0.00019625,2]
[326597007,1715123438869,-232.19279205,0.00019625,2]
[326597008,1715123438884,-2034.57,0.00019625,2]
[326597009,1715123438895,-500.0,0.00019625,2]
[326597010,1715123438906,-500.0,0.00019625,2]
[326597011,1715123438917,-500.0,0.00019625,2]
[326597012,1715123438928,-500.0,0.00019625,2]
[326597013,1715123438939,-1140.78,0.00019625,2]
[326597014,1715123438950,-500.0,0.00019625,2]
[326597015,1715123438961,-500.0,0.00019625,2]
[326597016,1715123438974,-500.0,0.00019625,2]
[326597017,1715123438985,-500.0,0.00019625,2]
[326597018,1715123438996,-500.0,0.00019726,2]
[326597019,1715123439008,-500.0,0.00019799,2]
[326597020,1715123439019,-500.0,0.00019799,2]
[326597021,1715123439029,-500.0,0.00019799,2]
[326597022,1715123439040,-500.0,0.00019799,2]
[326597023,1715123439051,-500.0,0.00019799,2]
[326597024,1715123439062,-1107.85,0.00019799,2]
[326597025,1715123439073,-362.89,0.00019899,2]
[326597026,1715123439084,-500.0,0.00019899,2]
[326597027,1715123439096,-500.0,0.00019899,2]
[326597028,1715123439106,-349.8530389,0.00019899,2]
[326597029,1715123439117,-646.21,0.00019899,2]
[326597030,1715123439128,-597.83,0.00019899,2]
[326597031,1715123439140,-500.0,0.00019899,2]
[326597032,1715123439152,-500.0,0.00019899,2]
[326597033,1715123439166,-500.0,0.00019899,2]
[326597034,1715123439177,-500.0,0.00019899,2]
[326597035,1715123439189,-500.0,0.00019899,2]
[326597036,1715123439201,-500.0,0.00019899,2]
[326597037,1715123439214,-742.01,0.00019899,2]
[326597038,1715123439226,-533.49,0.00019899,2]
[326597039,1715123439237,-500.0,0.00019899,2]
[326597040,1715123439254,-500.0,0.00019899,2]
[326597041,1715123439266,-862.44,0.00019899,2]
[326597042,1715123439277,-500.0,0.00019899,2]
[326597043,1715123439288,-500.0,0.00019899,2]
[326597044,1715123439300,-500.0,0.00019899,2]
[326597045,1715123439313,-500.0,0.00019899,2]
[326597046,1715123439325,-500.0,0.00019899,2]
[326597047,1715123439336,-500.0,0.00019899,2]
[326597048,1715123439347,-500.0,0.00019899,2]
[326597049,1715123439358,-500.0,0.00019899,2]
[326597050,1715123439366,-1443.74,0.00019899,2]
[326597051,1715123439375,-2034.57,0.00019899,2]
[326597052,1715123439385,-500.0,0.00019899,2]
[326597053,1715123439396,-500.0,0.00019899,2]
[326597054,1715123439406,-500.0,0.00019899,2]
[326597055,1715123439417,-500.0,0.00019899,2]
[326597056,1715123439427,-1140.78,0.00019899,2]
[326597057,1715123439437,-500.0,0.00019899,2]
[326597058,1715123439448,-500.0,0.00019899,2]
[326597059,1715123439457,-500.0,0.00019899,2]
[326597060,1715123439467,-500.0,0.00019899,2]
[326597061,1715123439476,-486.99,0.00019912,2]
[326597062,1715123439486,-150.0,0.00019955,3]
[326597063,1715123439496,-500.0,0.0002,2]
[326597064,1715123439511,-400.0,0.00020004,2]
[326597065,1715123439522,-500.0,0.00020073,2]
[326597066,1715123439533,-500.0,0.00020073,2]
[326597067,1715123439543,-500.0,0.00020073,2]
[326597068,1715123439555,-500.0,0.00020073,2]
[326597069,1715123439567,-500.0,0.00020073,2]
[326597070,1715123439579,-1107.85,0.00020073,2]
[326597071,1715123439592,-500.0,0.00020173,2]
[326597072,1715123439604,-500.0,0.00020173,2]
[326597074,1715123439615,-646.21,0.00020173,2]
[326597076,1715123439627,-597.83,0.00020173,2]
[326597078,1715123439639,-500.0,0.00020173,2]
[326597080,1715123439650,-500.0,0.00020173,2]
[326597082,1715123439661,-589.77958015,0.00020173,2]
[326597084,1715123439673,-500.0,0.00020173,2]
[326597086,1715123439685,-500.0,0.00020173,2]
[326597088,1715123439697,-500.0,0.00020173,2]
[326597090,1715123439708,-742.01,0.00020173,2]
[326597092,1715123439719,-533.49,0.00020173,2]
[326597093,1715123439730,-500.0,0.00020173,2]
[326597095,1715123439741,-500.0,0.00020173,2]
[326597097,1715123439762,-862.44,0.00020173,2]
[326597098,1715123439773,-500.0,0.00020173,2]
[326597099,1715123439783,-152.27719605,0.00020173,2]
[326597100,1715123439794,-500.0,0.00020173,2]
[326597101,1715123439804,-500.0,0.00020173,2]
[326597102,1715123439814,-500.0,0.00020173,2]
[326597103,1715123439825,-500.0,0.00020173,2]
[326597104,1715123439835,-500.0,0.00020173,2]
[326597105,1715123439846,-500.0,0.00020173,2]
[326597106,1715123439856,-1443.74,0.00020173,2]
[326597107,1715123439868,-2034.57,0.00020173,2]
[326597108,1715123439879,-230.28559454,0.00020173,2]
[326597109,1715123439890,-500.0,0.00020173,2]
[326597110,1715123439901,-500.0,0.00020173,2]
[326597111,1715123439914,-500.0,0.00020173,2]
[326597112,1715123439926,-1140.78,0.00020173,2]
[326597113,1715123439937,-500.0,0.00020173,2]
[326597114,1715123439948,-500.0,0.00020173,2]
[326597115,1715123439959,-500.0,0.00020173,2]
[326597116,1715123439969,-500.0,0.00020173,2]
[326597117,1715123439983,-598.56594166,0.00020253,2]
[326597118,1715123439994,-500.0,0.00020273,2]
[326597119,1715123440009,-500.0,0.00020347,2]
[326597120,1715123440020,-500.0,0.00020347,2]
[326597121,1715123440030,-500.0,0.00020347,2]
[326597122,1715123440040,-500.0,0.00020347,2]
[326597123,1715123440051,-500.0,0.00020347,2]
[326597124,1715123440061,-1107.85,0.00020347,2]
[326597125,1715123440072,-159.95281396,0.00020395,2]
[326597126,1715123440083,-500.0,0.00020447,2]
[326597127,1715123440094,-500.0,0.00020447,2]
[326597128,1715123440105,-646.21,0.00020447,2]
[326597129,1715123440116,-597.83,0.00020447,2]
[326597130,1715123440126,-500.0,0.00020447,2]
[326597131,1715123440137,-500.0,0.00020447,2]
[326597132,1715123440148,-500.0,0.00020447,2]
[326597133,1715123440159,-500.0,0.00020447,2]
[326597134,1715123440174,-500.0,0.00020447,2]
[326597135,1715123440185,-742.01,0.00020447,2]
[326597136,1715123440196,-533.49,0.00020447,2]
[326597137,1715123440207,-500.0,0.00020447,2]
[326597138,1715123440218,-500.0,0.00020447,2]
[326597139,1715123440229,-862.44,0.00020447,2]
[326597140,1715123440239,-500.0,0.00020447,2]
[326597141,1715123440253,-500.0,0.00020447,2]
[326597142,1715123440267,-500.0,0.00020447,2]
[326597143,1715123440276,-500.0,0.00020447,2]
[326597144,1715123440287,-500.0,0.00020447,2]
[326597145,1715123440298,-500.0,0.00020447,2]
[326597146,1715123440308,-500.0,0.00020447,2]
[326597147,1715123440318,-1443.74,0.00020447,2]
[326597148,1715123440329,-2034.57,0.00020447,2]
[326597149,1715123440340,-500.0,0.00020447,2]
[326597150,1715123440350,-500.0,0.00020447,2]
[326597151,1715123440360,-500.0,0.00020447,2]
[326597152,1715123440370,-1140.78,0.00020447,2]
[326597153,1715123440380,-500.0,0.00020447,2]
[326597154,1715123440391,-500.0,0.00020447,2]
[326597155,1715123440401,-500.0,0.00020447,2]
[326597156,1715123440412,-500.0,0.00020447,2]
[326597157,1715123440422,-150.0,0.00020457,5]
[326597158,1715123440432,-150.0,0.000205,2]
[326597159,1715123440442,-500.0,0.00020547,2]
[326597160,1715123440453,-500.0,0.00020621,2]
[326597161,1715123440463,-500.0,0.00020621,2]
[326597162,1715123440474,-500.0,0.00020621,2]
[326597163,1715123440484,-500.0,0.00020621,2]
[326597164,1715123440495,-500.0,0.00020621,2]
[326597165,1715123440508,-1107.85,0.00020621,2]
[326597166,1715123440519,-1092.43599996,0.00020626,2]
[326597167,1715123440529,-199.75971536,0.00020661,2]
[326597168,1715123440540,-355.99,0.00020721,2]
[326597169,1715123440551,-270.12,0.00020721,2]
[326597170,1715123440562,-646.21,0.00020721,2]
[326597171,1715123440572,-597.83,0.00020721,2]
[326597172,1715123440582,-500.0,0.00020721,2]
[326597173,1715123440592,-500.0,0.00020721,2]
[326597174,1715123440603,-500.0,0.00020721,2]
[326597175,1715123440613,-500.0,0.00020721,2]
[326597176,1715123440623,-742.01,0.00020721,2]
[326597177,1715123440633,-533.49,0.00020721,2]
[326597178,1715123440643,-500.0,0.00020721,2]
[326597179,1715123440654,-152.63298493,0.00020721,2]
[326597180,1715123440663,-862.44,0.00020721,2]
[326597181,1715123440673,-500.0,0.00020721,2]
[326597182,1715123440682,-500.0,0.00020721,2]
[326597183,1715123440692,-500.0,0.00020721,2]
[326597184,1715123440703,-500.0,0.00020721,2]
[326597185,1715123440712,-500.0,0.00020721,2]
[326597186,1715123440722,-500.0,0.00020721,2]
[326597187,1715123440732,-500.0,0.00020721,2]
[326597188,1715123440742,-1443.74,0.00020721,2]
[326597189,1715123440755,-2034.57,0.00020721,2]
[326597190,1715123440765,-500.0,0.00020721,2]
[326597191,1715123440775,-500.0,0.00020721,2]
[326597192,1715123440785,-500.0,0.00020721,2]
[326597193,1715123440800,-1140.78,0.00020721,2]
[326597194,1715123440810,-500.0,0.00020721,2]
[326597195,1715123440821,-500.0,0.00020721,2]
[326597196,1715123440831,-500.0,0.00020721,2]
[326597197,1715123440840,-500.0,0.00020721,2]
[326597198,1715123440850,-500.0,0.00020721,2]
[326597199,1715123440860,-500.0,0.00020821,2]
[326597200,1715123440870,-500.0,0.00020895,2]
[326597201,1715123440881,-500.0,0.00020895,2]
[326597202,1715123440891,-500.0,0.00020895,2]
[326597203,1715123440905,-500.0,0.00020895,2]
[326597204,1715123440915,-500.0,0.00020895,2]
[326597205,1715123440926,-1107.85,0.00020895,2]
[326597206,1715123440937,-1295.28730934,0.00020898,2]
[326597207,1715123440947,-150.0,0.00020959,5]
[326597208,1715123440957,-646.21,0.00020995,2]
[326597209,1715123440968,-597.83,0.00020995,2]
[326597210,1715123440981,-500.0,0.00020995,2]
[326597211,1715123440992,-397.97288861,0.00020995,2]
[326597212,1715123441004,-500.0,0.00020995,2]
[326597213,1715123441013,-500.0,0.00020995,2]
[326597214,1715123441024,-742.01,0.00020995,2]
[326597215,1715123441034,-533.49,0.00020995,2]
[326597216,1715123441044,-500.0,0.00020995,2]
[326597217,1715123441054,-862.44,0.00020995,2]
[326597218,1715123441064,-500.0,0.00020995,2]
[326597219,1715123441075,-500.0,0.00020995,2]
[326597220,1715123441085,-500.0,0.00020995,2]
[326597221,1715123441095,-500.0,0.00020995,2]
[326597222,1715123441105,-500.0,0.00020995,2]
[326597223,1715123441115,-500.0,0.00020995,2]
[326597224,1715123441125,-500.0,0.00020995,2]
[326597225,1715123441135,-1443.74,0.00020995,2]
[326597226,1715123441145,-2034.57,0.00020995,2]
[326597227,1715123441155,-500.0,0.00020995,2]
[326597228,1715123441169,-500.0,0.00020995,2]
[326597229,1715123441179,-500.0,0.00020995,2]
[326597230,1715123441189,-1140.78,0.00020995,2]
[326597231,1715123441199,-500.0,0.00020995,2]
[326597232,1715123441211,-500.0,0.00020995,2]
[326597233,1715123441221,-500.0,0.00020995,2]
[326597234,1715123441231,-500.0,0.00020995,2]
[326597235,1715123441242,-150.0,0.00021,2]
[326597236,1715123441255,-591.01486182,0.00021095,2]
[326597237,1715123441266,-500.0,0.00021169,2]
[326597238,1715123441276,-500.0,0.00021169,2]
[326597239,1715123441286,-500.0,0.00021169,2]
[326597240,1715123441296,-500.0,0.00021169,2]
[326597241,1715123441307,-500.0,0.00021169,2]
[326597242,1715123441317,-1107.85,0.00021169,2]
[326597243,1715123441327,-646.21,0.00021269,2]
[326597244,1715123441337,-597.83,0.00021269,2]
[326597245,1715123441347,-500.0,0.00021269,2]
[326597246,1715123441357,-500.0,0.00021269,2]
[326597247,1715123441366,-500.0,0.00021269,2]
[326597248,1715123441377,-742.01,0.00021269,2]
[326597249,1715123441386,-533.49,0.00021269,2]
[326597250,1715123441396,-500.0,0.00021269,2]
[326597251,1715123441406,-862.44,0.00021269,2]
[326597252,1715123441415,-500.0,0.00021269,2]
[326597253,1715123441425,-500.0,0.00021269,2]
[326597254,1715123441435,-500.0,0.00021269,2]
[326597255,1715123441446,-500.0,0.00021269,2]
[326597256,1715123441456,-500.0,0.00021269,2]
[326597257,1715123441466,-500.0,0.00021269,2]
[326597258,1715123441476,-500.0,0.00021269,2]
[326597259,1715123441487,-1443.74,0.00021269,2]
[326597260,1715123441497,-2034.57,0.00021269,2]
[326597261,1715123441508,-500.0,0.00021269,2]
[326597262,1715123441518,-226.13757228,0.00021269,2]
[326597263,1715123441528,-500.0,0.00021269,2]
[326597264,1715123441538,-1140.78,0.00021269,2]
[326597265,1715123441547,-500.0,0.00021269,2]
[326597266,1715123441557,-500.0,0.00021269,2]
[326597267,1715123441567,-500.0,0.00021269,2]
[326597268,1715123441577,-500.0,0.00021269,2]
[326597269,1715123441586,-325.66,0.00021334,2]
[326597270,1715123441596,-1046.1,0.00021334,2]
[326597271,1715123441606,-351.14,0.00021334,2]
[326597272,1715123441616,-351.14,0.00021334,2]
[326597273,1715123441626,-351.14,0.00021334,2]
[326597274,1715123441637,-598.56594166,0.00021353,2]
[326597275,1715123441648,-500.0,0.00021443,2]
[326597276,1715123441658,-500.0,0.00021443,2]
[326597277,1715123441668,-500.0,0.00021443,2]
[326597278,1715123441679,-500.0,0.00021443,2]
[326597279,1715123441690,-500.0,0.00021443,2]
[326597280,1715123441700,-1107.85,0.00021443,2]
[326597281,1715123441709,-150.0,0.00021462,5]
[326597282,1715123441719,-150.0,0.000215,3]
[326597283,1715123441730,-646.21,0.00021543,2]
[326597284,1715123441740,-597.83,0.00021543,2]
[326597285,1715123441751,-500.0,0.00021543,2]
[326597286,1715123441760,-500.0,0.00021543,2]
[326597287,1715123441770,-500.0,0.00021543,2]
[326597288,1715123441780,-742.01,0.00021543,2]
[326597289,1715123441789,-533.49,0.00021543,2]
[326597290,1715123441800,-500.0,0.00021543,2]
[326597291,1715123441809,-862.44,0.00021543,2]
[326597292,1715123441819,-500.0,0.00021543,2]
[326597293,1715123441829,-500.0,0.00021543,2]
[326597294,1715123441839,-500.0,0.00021543,2]
[326597295,1715123441850,-500.0,0.00021543,2]
[326597296,1715123441860,-500.0,0.00021543,2]
[326597297,1715123441870,-500.0,0.00021543,2]
[326597298,1715123441880,-500.0,0.00021543,2]
[326597299,1715123441890,-1443.74,0.00021543,2]
[326597300,1715123441899,-2034.57,0.00021543,2]
[326597301,1715123441910,-500.0,0.00021543,2]
[326597302,1715123441919,-500.0,0.00021543,2]
[326597303,1715123441929,-1140.78,0.00021543,2]
[326597304,1715123441938,-500.0,0.00021543,2]
[326597305,1715123441948,-500.0,0.00021543,2]
[326597306,1715123441958,-500.0,0.00021543,2]
[326597307,1715123441970,-522.73256942,0.00021543,2]
[326597308,1715123441982,-1358.9,0.00021589,15]
[326597309,1715123441998,-159.95281396,0.00021639,2]
[326597310,1715123442009,-500.0,0.00021717,2]
[326597311,1715123442020,-500.0,0.00021717,2]
[326597312,1715123442030,-500.0,0.00021717,2]
[326597313,1715123442040,-500.0,0.00021717,2]
[326597314,1715123442050,-500.0,0.00021717,2]
[326597315,1715123442060,-1107.85,0.00021717,2]
[326597316,1715123442070,-646.21,0.00021817,2]
[326597317,1715123442079,-597.83,0.00021817,2]
[326597318,1715123442090,-614.46190758,0.00021817,2]
[326597319,1715123442099,-500.0,0.00021817,2]
[326597320,1715123442109,-500.0,0.00021817,2]
[326597321,1715123442118,-742.01,0.00021817,2]
[326597322,1715123442128,-533.49,0.00021817,2]
[326597323,1715123442138,-500.0,0.00021817,2]
[326597324,1715123442148,-862.44,0.00021817,2]
[326597325,1715123442158,-500.0,0.00021817,2]
[326597326,1715123442168,-500.0,0.00021817,2]
[326597327,1715123442178,-500.0,0.00021817,2]
[326597328,1715123442191,-500.0,0.00021817,2]
[326597329,1715123442200,-500.0,0.00021817,2]
[326597330,1715123442210,-500.0,0.00021817,2]
[326597331,1715123442221,-500.0,0.00021817,2]
[326597332,1715123442231,-1443.74,0.00021817,2]
[326597333,1715123442241,-2034.57,0.00021817,2]
[326597334,1715123442253,-500.0,0.00021817,2]
[326597335,1715123442266,-500.0,0.00021817,2]
[326597336,1715123442276,-1140.78,0.00021817,2]
[326597337,1715123442286,-500.0,0.00021817,2]
[326597338,1715123442296,-500.0,0.00021817,2]
[326597339,1715123442306,-500.0,0.00021817,2]
[326597340,1715123442316,-10117.98303872,0.000219,2]
[326597341,1715123442466,-167.11724097,0.000219,2]
[326597342,1715123442476,-180.2499032,0.000219,2]
[326597343,1715123442487,-1092.43599996,0.000219,2]
[326597344,1715123442497,-300.0,0.00021917,5]
[326597345,1715123442508,-2000.0,0.00021918,2]
[326597346,1715123442519,-250.0,0.00021918,2]
[326597347,1715123442529,-250.0,0.00021918,2]
[326597348,1715123442539,-152.62869324,0.00021937,2]
[326597349,1715123442550,-150.0,0.00021964,5]
[326597350,1715123442561,-236.0,0.0002197,15]
[326597351,1715123442571,-4587.97821425,0.00021978,2]
[326597352,1715123442581,-236.0,0.0002198,15]
[326597353,1715123442592,-236.0,0.0002199,15]
[326597354,1715123442602,-500.0,0.00021991,2]
[326597355,1715123442612,-500.0,0.00021991,2]
[326597356,1715123442622,-500.0,0.00021991,2]
[326597357,1715123442633,-419.20158914,0.00021991,2]
[326597358,1715123442643,-500.0,0.00021991,2]
[326597359,1715123442654,-1107.85,0.00021991,2]
[326597360,1715123442665,-1061.82742862,0.00021998,2]
[326597361,1715123442675,-157.41537252,0.00021998,2]
[326597362,1715123442684,-192.95073016,0.00021998,2]
[326597363,1715123442694,-177.54622384,0.00021998,2]
[326597364,1715123442704,-211.79502303,0.00021998,2]
[326597365,1715123442715,-155.0,0.00021998,2]
[326597366,1715123442726,-782.13638794,0.00021998,2]
[326597367,1715123442735,-271.3321844,0.00021998,2]
[326597368,1715123442745,-20809.68679244,0.00021998,2]
[326597369,1715123442757,-5551.89418728,0.00021999,2]
[326597370,1715123442766,-1000.0,0.00021999,2]
[326597371,1715123442776,-1415.32,0.00021999,2]
[326597372,1715123442786,-607215.52287905,0.00022,2]
[326597373,1715123442978,-709.76105,0.00022,2]
[326597374,1715123442991,-844.00971584,0.00022,2]
[326597375,1715123443003,-858.16390953,0.00022,2]
[326597376,1715123443016,-303.305,0.00022,2]
[326597377,1715123443028,-124769.03807153,0.00022,2]
[326597378,1715123443040,-870.75331418,0.00022,2]
[326597379,1715123443052,-1391.20306,0.00022,2]
[326597380,1715123443480,-366.94333179,0.00017259,2]
[326597385,1715123443491,-500.0,0.00019351,2]
[326597389,1715123443502,-138.4866682,0.00019351,2]
[326597394,1715123443514,-361.5133318,0.00019351,2]
[326597398,1715123443524,-500.0,0.00019625,2]
[326597403,1715123443535,-512.82324572,0.00019799,2]
[326597409,1715123443545,-288.0,0.0002179,2]
[326597412,1715123443555,-1164.62729514,0.00022,2]
[326597416,1715123443568,-1702.20964643,0.00022,2]
[326597420,1715123443580,-3838.18497978,0.00022,2]
[326597423,1715123443593,-158752.49029525,0.00022,2]
[326597427,1715123443603,-546.36598452,0.00022,2]
[326597430,1715123443613,-850.0,0.00022,3]
[326597434,1715123443623,-7506.15475185,0.00022,2]
[326597438,1715123443633,-1500.0,0.00022,2]
[326597441,1715123443643,-1182.7446,0.00022,2]
[326597443,1715123443653,-150.0,0.00022,3]
[326597445,1715123443664,-502.2365039,0.00022017,2]
[326597447,1715123443674,-2928.73291576,0.00022032,2]
[326597449,1715123443686,-3024.10000005,0.00022032,2]
[326597451,1715123443699,-3026.26479159,0.00022032,2]
[326597453,1715123443709,-151.0,0.00022047,2]
[326597455,1715123443719,-199.75971536,0.00022071,2]
[326597457,1715123443729,-646.21,0.00022091,2]
[326597459,1715123443739,-597.83,0.00022091,2]
[326597461,1715123443750,-500.0,0.00022091,2]
[326597463,1715123443761,-500.0,0.00022091,2]
[326597465,1715123443771,-742.01,0.00022091,2]
[326597467,1715123443781,-533.49,0.00022091,2]
[326597469,1715123443791,-309.69484197,0.00022091,2]
[326597471,1715123443802,-862.44,0.00022091,2]
[326597473,1715123443812,-500.0,0.00022091,2]
[326597474,1715123443822,-500.0,0.00022091,2]
[326597476,1715123443833,-500.0,0.00022091,2]
[326597479,1715123443843,-500.0,0.00022091,2]
[326597482,1715123443853,-259.22366203,0.00022091,2]
[326597485,1715123443866,-240.77633797,0.00022091,2]
[326597488,1715123443877,-500.0,0.00022091,2]
[326597491,1715123443888,-1443.74,0.00022091,2]
[326597494,1715123443898,-2034.57,0.00022091,2]
[326597497,1715123443909,-500.0,0.00022091,2]
[326597500,1715123443919,-500.0,0.00022091,2]
[326597503,1715123443929,-1140.78,0.00022091,2]
[326597505,1715123443939,-500.0,0.00022091,2]
[326597507,1715123443949,-500.0,0.00022091,2]
[326597509,1715123443959,-500.0,0.00022091,2]
[326597511,1715123443971,-157.050808,0.00022148,2]
[326597513,1715123443982,-351.14,0.00022156,2]
[326597516,1715123443992,-744.22,0.00022156,2]
[326597519,1715123444002,-305.7,0.00022156,2]
[326597521,1715123444013,-32045.0,0.00022192,2]
[326597524,1715123444023,-179659.0,0.00022192,2]
[326597527,1715123444033,-80385.28714813,0.0002223,2]
[326597529,1715123444046,-421.399227,0.0002223,2]
[326597531,1715123444058,-3158.58699517,0.0002223,2]
[326597534,1715123444070,-3549.509121,0.0002223,2]
[326597536,1715123444082,-258.67387661,0.0002223,2]
[326597538,1715123444093,-494.72760592,0.0002223,2]
[326597540,1715123444105,-1651.94935281,0.0002223,2]
[326597542,1715123444118,-6022.01540092,0.0002223,2]
[326597545,1715123444130,-4628.83243497,0.0002223,2]
[326597547,1715123444142,-764.53363085,0.0002223,2]
[326597549,1715123444153,-12484.0,0.0002223,2]
[326597551,1715123444166,-1466.36281864,0.0002223,2]
[326597553,1715123444179,-312.867555,0.0002223,2]
[326597555,1715123444192,-382839.7014362,0.0002223,2]
[326597557,1715123444202,-500.0,0.00022265,2]
[326597560,1715123444213,-500.0,0.00022265,2]
[326597562,1715123444223,-500.0,0.00022265,2]
[326597564,1715123444233,-500.0,0.00022265,2]
[326597566,1715123444243,-1107.85,0.00022265,2]
[326597568,1715123444256,-646.21,0.00022365,2]
[326597570,1715123444267,-597.83,0.00022365,2]
[326597572,1715123444278,-500.0,0.00022365,2]
[326597574,1715123444288,-500.0,0.00022365,2]
[326597576,1715123444297,-742.01,0.00022365,2]
[326597578,1715123444307,-533.49,0.00022365,2]
[326597579,1715123444316,-862.44,0.00022365,2]
[326597582,1715123444326,-500.0,0.00022365,2]
[326597583,1715123444335,-500.0,0.00022365,2]
[326597585,1715123444345,-500.0,0.00022365,2]
[326597588,1715123444355,-500.0,0.00022365,2]
[326597590,1715123444366,-500.0,0.00022365,2]
[326597592,1715123444376,-500.0,0.00022365,2]
[326597594,1715123444386,-1443.74,0.00022365,2]
[326597596,1715123444396,-2034.57,0.00022365,2]
[326597598,1715123444406,-500.0,0.00022365,2]
[326597599,1715123444415,-500.0,0.00022365,2]
[326597601,1715123444425,-1140.78,0.00022365,2]
[326597604,1715123444435,-500.0,0.00022365,2]